bitfinex/quotes_SOLUSD_20220226
["timestamp","ask_amount","ask_price","bid_price","bid_amount"]
[1645852767823,64.21,92.744,92.607,11.25194594]
[1645852768120,15.51,92.73,92.59,54.97983007]
[1645852768325,16.1966,92.7,92.59,71.17573007]
[1645852768522,1.69910603,92.699,92.59,71.17573007]
[1645852770824,1.69910603,92.699,92.591,2.86292427]
[1645852771026,1.69910603,92.699,92.592,22.5481]
[1645852772225,11.99768402,92.7,92.592,22.5481]
[1645852772423,1.50709706,92.699,92.592,22.5481]
[1645852773023,27.50768402,92.7,92.601,2.29575319]
[1645852773024,11.99768402,92.7,92.601,2.29575319]
[1645852773223,31.7033,92.72,92.601,2.29575319]
[1645852773428,31.7033,92.72,92.602,16.0533904]
[1645852773625,31.7033,92.72,92.604,60.92774236]
[1645852773827,15.51,92.72,92.605,106.9]
[1645852774026,22.49630481,92.747,92.612,3.07641974]
[1645852774227,16.1902,92.74,92.613,23.1814]
[1645852774426,16.1902,92.74,92.614,2.30832362]
[1645852774627,16.1902,92.74,92.615,0.25]
[1645852774827,16.1902,92.74,92.615,16.3033904]
[1645852775027,16.1902,92.74,92.616,122.51141325]
[1645852775228,1.38560731,92.757,92.641,59.23925022]
[1645852775428,1.38560731,92.757,92.642,23.4509]
[1645852775629,1.38560731,92.757,92.643,2.45670985]
[1645852775830,1.38560731,92.757,92.644,22.7581]
[1645852776033,1.38560731,92.757,92.645,2.64060706]
[1645852776430,1.38560731,92.757,92.646,2.86292427]
[1645852776630,1.38560731,92.757,92.646,16.0533904]
[1645852776829,47.21034651,92.76,92.647,2.88249688]
[1645852777031,47.21034651,92.76,92.647,16.0533904]
[1645852777230,47.21034651,92.76,92.648,18.3512775]
[1645852777430,47.21034651,92.76,92.65,16.1858]
[1645852777731,47.21034651,92.76,92.651,2.4672654]
[1645852777930,31.697,92.76,92.651,112.23018967]
[1645852778133,1.82958753,92.778,92.653,106.9]
[1645852778332,1.82958753,92.778,92.657,106.9]
[1645852778534,1.82958753,92.778,92.658,2.91100762]
[1645852778732,4.314,92.777,92.658,5.77393189]
[1645852779132,4.314,92.777,92.659,2.86292427]
[1645852779534,4.314,92.777,92.66,16.184]
[1645852779734,4.314,92.777,92.661,2.4414337]
[1645852779933,4.314,92.777,92.661,5.30435797]
[1645852780132,4.314,92.777,92.662,2.86292427]
[1645852781734,1.82958753,92.778,92.662,2.86292427]
[1645852782235,36.0071,92.78,92.662,2.86292427]
[1645852782438,1.52484985,92.779,92.662,2.86292427]
[1645852782635,2.60342835,92.777,92.662,2.86292427]
[1645852782835,4.314,92.776,92.662,2.86292427]
[1645852783036,2.60342835,92.777,92.662,2.86292427]
[1645852783836,3.97780055,92.777,92.662,2.86292427]
[1645852784638,3.97780055,92.777,92.661,109.86286202]
[1645852784841,15.51,92.78,92.672,2.8317283]
[1645852785138,5.97857532,92.799,92.675,2.39614868]
[1645852785338,1.66557532,92.799,92.678,2.31757056]
[1645852786538,1.66557532,92.799,92.68,16.1805]
[1645852786740,10.31701026,92.799,92.681,4.313]
[1645852787140,1.66557532,92.799,92.681,4.313]
[1645852787341,2.60342835,92.798,92.681,4.313]
[1645852787539,1.66557532,92.799,92.681,4.313]
[1645852787540,1.66557532,92.799,92.682,2.70864202]
[1645852787739,1.66557532,92.799,92.685,106.9]
[1645852787939,1.66557532,92.799,92.686,4.313]
[1645852788140,1.66557532,92.799,92.686,106.9]
[1645852788339,2.60342835,92.798,92.687,24.312]
[1645852788540,1.66557532,92.799,92.688,3.0727698]
[1645852788942,1.66557532,92.799,92.689,4.312]
[1645852789146,1.66557532,92.799,92.688,7.3847698]
[1645852789640,1.66557532,92.799,92.688,3.0727698]
[1645852789840,2.60342835,92.798,92.688,3.0727698]
[1645852790243,2.60342835,92.798,92.687,24.312]
[1645852790441,1.78025424,92.788,92.687,24.312]
[1645852790641,106.9,92.779,92.687,24.312]
[1645852790942,1.6210838,92.775,92.687,24.312]
[1645852791348,16.1865,92.77,92.688,60.02438292]
[1645852791543,31.6965,92.77,92.688,60.02438292]
[1645852791741,1.4175626,92.769,92.688,60.02438292]
[1645852794444,1.4175626,92.769,92.687,24.312]
[1645852794641,1.56685688,92.768,92.687,24.312]
[1645852795042,64.21,92.759,92.676,24.7111]
[1645852795243,1.70922304,92.758,92.676,24.7111]
[1645852795443,4.30215067,92.758,92.676,24.7111]
[1645852795744,171.11,92.747,92.601,4.314]
[1645852795943,171.11,92.739,92.589,4.316]
[1645852796244,65.72227382,92.709,92.589,4.316]
[1645852796445,1.73525653,92.706,92.589,4.316]
[1645852796645,1.73525653,92.706,92.59,48.60994772]
[1645852797045,2.588615,92.705,92.59,48.60994772]
[1645852797243,31.709,92.69,92.59,48.60994772]
[1645852797448,1.62584698,92.689,92.59,48.60994772]
[1645852797649,68.42446198,92.689,92.59,48.60994772]
[1645852797848,1.41985276,92.686,92.59,48.60994772]
[1645852798247,2.588615,92.685,92.59,48.60994772]
[1645852799048,64.21,92.684,92.59,48.60994772]
[1645852799248,64.21,92.669,92.59,48.60994772]
[1645852799446,1.52588626,92.668,92.59,48.60994772]
[1645852800449,4.11161995,92.668,92.59,48.60994772]
[1645852800647,1.52588626,92.668,92.59,48.60994772]
[1645852801449,16.2045,92.66,92.59,48.60994772]
[1645852801847,1.46430836,92.659,92.59,48.60994772]
[1645852804448,1.82825656,92.677,92.59,48.60994772]
[1645852808054,4.91918104,92.677,92.59,48.60994772]
[1645852808251,4.91918104,92.677,92.581,4.317]
[1645852808252,171.11,92.669,92.581,4.317]
[1645852808451,64.21,92.657,92.581,4.317]
[1645852808651,1.81524629,92.656,92.581,4.317]
[1645852809051,4.40097998,92.656,92.581,4.317]
[1645852809251,4.40097998,92.656,92.582,48.91575355]
[1645852809454,64.21,92.649,92.582,48.91575355]
[1645852809650,1.39645616,92.648,92.581,4.317]
[1645852810052,64.21,92.647,92.581,4.317]
[1645852810252,1.69132298,92.646,92.581,4.317]
[1645852810852,4.27705667,92.646,92.581,4.317]
[1645852811053,68.48705667,92.646,92.581,4.317]
[1645852811254,64.21,92.639,92.581,4.317]
[1645852811454,64.21,92.629,92.506,24.5328]
[1645852811656,64.21,92.627,92.507,46.0428]
[1645852811854,1.62344032,92.626,92.507,46.0428]
[1645852812056,1.62344032,92.626,92.508,14.35201205]
[1645852812255,3.09092448,92.658,92.508,14.35201205]
[1645852812256,24.739,92.654,92.511,106.9]
[1645852812457,1.66132014,92.653,92.521,106.9]
[1645852812659,1.66132014,92.653,92.523,106.9]
[1645852812855,1.66132014,92.653,92.524,2.55415829]
[1645852813054,65.87132014,92.653,92.524,2.55415829]
[1645852813259,1.36209612,92.652,92.526,106.9]
[1645852813456,1.36209612,92.652,92.54,16.2044]
[1645852813756,1.36209612,92.652,92.541,49.01151313]
[1645852813958,1.36209612,92.652,92.542,47.3639]
[1645852814554,1.36209612,92.652,92.544,2.76870575]
[1645852815354,1.36209612,92.652,92.55,16.2033]
[1645852815554,22.1251122,92.656,92.551,106.9]
[1645852815754,1.8743698,92.677,92.562,2.86628569]
[1645852815954,1.8743698,92.677,92.571,106.9]
[1645852816154,1.8743698,92.677,92.573,106.9]
[1645852816354,1.8743698,92.677,92.58,16.1979]
[1645852816554,50.06563668,92.687,92.574,23.5056]
[1645852816555,25.21603668,92.687,92.582,3.06352099]
[1645852816755,4.317,92.699,92.583,0.25]
[1645852816956,27.28266805,92.719,92.585,2.63841426]
[1645852817154,1.49636897,92.718,92.585,2.63841426]
[1645852817361,1.49636897,92.718,92.587,106.9]
[1645852817556,1.49636897,92.718,92.6,15.51]
[1645852817755,1.49636897,92.718,92.602,55.19608075]
[1645852818357,4.316,92.717,92.602,55.19608075]
[1645852818557,1.49636897,92.718,92.602,55.19608075]
[1645852818757,4.316,92.717,92.602,55.19608075]
[1645852819361,4.316,92.717,92.612,2.60713392]
[1645852819564,1.54875006,92.728,92.612,2.60713392]
[1645852819761,7.82851563,92.733,92.615,2.86411438]
[1645852820558,7.82851563,92.733,92.62,16.1908]
[1645852821770,64.21,92.732,92.62,16.1908]
[1645852821963,1.68507645,92.731,92.62,31.7008]
[1645852822160,1.68507645,92.731,92.62,34.77303158]
[1645852823964,1.68507645,92.731,92.621,106.9]
[1645852824168,1.68507645,92.731,92.622,4.316]
[1645852824364,1.68507645,92.731,92.623,106.9]
[1645852824565,1.68507645,92.731,92.624,2.92985945]
[1645852825168,1.68507645,92.731,92.625,23.6833]
[1645852825790,1.68507645,92.731,92.626,2.78933569]
[1645852826390,28.6556,92.742,92.626,109.68933569]
[1645852826590,1.54035621,92.741,92.627,2.51844884]
[1645852826792,1.54035621,92.741,92.631,106.9]
[1645852826991,1.54035621,92.741,92.633,106.9]
[1645852827191,1.54035621,92.741,92.635,106.9]
[1645852827392,1.54035621,92.741,92.637,106.9]
[1645852827592,1.54035621,92.741,92.638,2.54056754]
[1645852827793,1.54035621,92.741,92.639,134.07861468]
[1645852828592,1.54035621,92.741,92.64,16.1874]
[1645852829592,1.54035621,92.741,92.641,106.9]
[1645852830192,1.54035621,92.741,92.642,4.315]
[1645852830396,1.54035621,92.741,92.641,4.315]
[1645852832797,1.54035621,92.741,92.64,16.1874]
[1645852839509,1.90666667,92.76,92.641,112.58559492]
[1645852839707,2.58573369,92.776,92.641,112.58559492]
[1645852839708,2.58573369,92.776,92.652,2.91753762]
[1645852839908,2.58573369,92.794,92.682,60.09373569]
[1645852840107,2.58573369,92.794,92.682,65.81373569]
[1645852840709,2.58573369,92.794,92.683,47.9801]
[1645852841308,1.48845015,92.8,92.691,106.9]
[1645852841509,1.48845015,92.8,92.691,113.12]
[1645852844310,1.48845015,92.8,92.691,6.22]
[1645852844509,1.48845015,92.8,92.69,31.6888]
[1645852844711,66.79573369,92.799,92.69,15.51]
[1645852844909,1.55674203,92.798,92.69,15.51]
[1645852845111,64.21,92.797,92.685,4.312]
[1645852845316,64.21,92.795,92.685,4.312]
[1645852845514,64.21,92.793,92.685,4.312]
[1645852845712,64.21,92.789,92.685,4.312]
[1645852845913,16.1855,92.76,92.685,4.312]
[1645852846212,1.80699632,92.759,92.685,4.312]
[1645852846611,4.39273001,92.759,92.685,4.312]
[1645852846812,2.58573369,92.758,92.685,4.312]
[1645852847012,1.56636346,92.748,92.685,4.312]
[1645852847811,1.56636346,92.748,92.649,46.4915]
[1645852847812,4.15209715,92.748,92.662,60.7815946]
[1645852848013,2.58573369,92.748,92.662,60.7815946]
[1645852848713,1.50931209,92.739,92.662,60.7815946]
[1645852850713,9.43931209,92.739,92.662,60.7815946]
[1645852851119,64.21,92.738,92.649,46.4915]
[1645852851414,1.79139494,92.728,92.649,46.4915]
[1645852851813,2.58573369,92.727,92.649,46.4915]
[1645852852314,2.58573369,92.727,92.65,45.16583606]
[1645852852512,16.1927,92.72,92.65,45.16583606]
[1645852852712,1.45289514,92.719,92.65,45.16583606]
[1645852856615,68.24862883,92.719,92.613,49.6665788]
[1645852856818,68.24862883,92.719,92.553,23.8993]
[1645852856819,65.92979076,92.709,92.614,24.1361]
[1645852857116,1.38478114,92.708,92.614,24.1361]
[1645852857317,64.21,92.707,92.614,24.1361]
[1645852857517,1.78903529,92.706,92.614,24.1361]
[1645852857716,4.37476898,92.706,92.614,24.1361]
[1645852858117,16.1974,92.69,92.614,24.1361]
[1645852858318,1.38540001,92.689,92.614,24.1361]
[1645852860319,47.5053,92.704,92.614,24.1361]
[1645852860320,1.47141896,92.699,92.614,24.1361]
[1645852863532,16.1966,92.7,92.615,2.60964725]
[1645852863935,65.6780862,92.699,92.614,24.1361]
[1645852864532,65.6780862,92.699,92.615,46.45281444]
[1645852865735,1.4680862,92.699,92.615,46.45281444]
[1645852865935,31.7066,92.7,92.616,2.7160531]
[1645852866337,31.7066,92.7,92.615,46.45281444]
[1645852866746,64.21,92.699,92.615,46.45281444]
[1645852866946,16.198,92.69,92.615,46.45281444]
[1645852868648,16.198,92.69,92.616,2.83263271]
[1645852868948,16.198,92.69,92.615,46.45281444]
[1645852871450,16.198,92.69,92.614,24.1361]
[1645852871653,64.21,92.689,92.601,24.6707]
[1645852872453,64.21,92.689,92.602,60.98300014]
[1645852872851,16.198,92.69,92.602,60.98300014]
[1645852873052,16.198,92.69,92.604,2.92744096]
[1645852876270,47.5053,92.704,92.604,28.60173222]
[1645852876469,47.5053,92.704,92.605,21.80641671]
[1645852876681,47.5053,92.704,92.606,2.54654851]
[1645852876872,47.5053,92.704,92.607,4.317]
[1645852877070,47.5053,92.704,92.607,28.27625445]
[1645852877270,47.5053,92.704,92.608,2.53651341]
[1645852877470,47.5053,92.704,92.609,2.90061501]
[1645852877671,47.5053,92.704,92.61,6.73796169]
[1645852877870,47.5053,92.704,92.612,2.96245546]
[1645852878170,47.5053,92.704,92.613,4.316]
[1645852878371,47.5053,92.704,92.615,106.9]
[1645852878570,16.1946,92.71,92.617,106.9]
[1645852878770,47.5289,92.728,92.618,2.6224551]
[1645852883380,16.1929,92.72,92.618,2.6224551]
[1645852885613,190.03326325,92.719,92.614,24.364]
[1645852885808,16.1968,92.7,92.614,27.28950065]
[1645852886008,64.21,92.699,92.614,24.364]
[1645852886208,1.52294902,92.698,92.614,24.364]
[1645852886610,4.11262112,92.698,92.614,24.364]
[1645852886810,2.5896721,92.697,92.614,24.364]
[1645852887511,16.1991,92.69,92.614,24.364]
[1645852888117,66.80242645,92.689,92.602,58.59078605]
[1645852888311,1.6311946,92.688,92.602,58.59078605]
[1645852888512,4.22362105,92.688,92.602,58.59078605]
[1645852888711,2.59242645,92.687,92.602,58.59078605]
[1645852889514,16.2003,92.68,92.602,58.59078605]
[1645852890116,16.2003,92.68,92.603,2.94250982]
[1645852890321,16.2003,92.68,92.604,3.06100989]
[1645852898120,64.21,92.679,92.603,22.9552]
[1645852898319,64.21,92.669,92.58,2.79862881]
[1645852898519,1.67924204,92.668,92.58,27.39102881]
[1645852898718,4.27555388,92.668,92.58,24.5924]
[1645852899118,64.21,92.666,92.58,24.5924]
[1645852899320,1.7316429,92.665,92.581,60.12366935]
[1645852899524,2.59631184,92.665,92.582,2.49923406]
[1645852899721,64.21,92.666,92.582,2.49923406]
[1645852899922,24.5129,92.667,92.582,2.49923406]
[1645852902423,24.5129,92.667,92.581,60.12366935]
[1645852903023,68.3365318,92.666,92.581,60.12366935]
[1645852903223,1.661598,92.665,92.581,60.12366935]
[1645852906026,64.21,92.659,92.58,24.5924]
[1645852906229,1.4735144,92.658,92.58,24.5924]
[1645852906526,4.06970371,92.658,92.58,24.5924]
[1645852906726,2.59618931,92.657,92.58,24.5924]
[1645852907328,4.24538016,92.657,92.58,24.5924]
[1645852908329,16.2053,92.65,92.574,24.7098]
[1645852908529,65.85335217,92.649,92.574,24.7098]
[1645852908730,1.42763916,92.648,92.574,24.7098]
[1645852908928,4.02382847,92.648,92.574,24.7098]
[1645852909328,2.59618931,92.647,92.574,24.7098]
[1645852909528,16.2081,92.63,92.574,24.7098]
[1645852909729,16.2081,92.63,92.569,4.317]
[1645852910630,1.55939764,92.628,92.569,4.317]
[1645852911632,16.2081,92.63,92.569,4.317]
[1645852921565,173.698893,92.629,92.569,4.317]
[1645852921763,64.21,92.618,92.546,1.3139196]
[1645852921964,64.21,92.609,92.546,1.3139196]
[1645852922764,64.21,92.609,92.533,24.7951]
[1645852923365,4.321,92.62,92.533,24.7951]
[1645852923566,15.51,92.63,92.535,2.9970058]
[1645852923964,15.51,92.64,92.535,2.9970058]
[1645852924366,64.21,92.631,92.535,2.9970058]
[1645852924566,16.2088,92.63,92.535,2.9970058]
[1645852925564,58.3486,92.65,92.535,109.8970058]
[1645852925565,73.8586,92.65,92.535,109.8970058]
[1645852925768,4.32,92.665,92.541,106.9]
[1645852925964,4.32,92.665,92.542,3.24928378]
[1645852926167,20.75270334,92.679,92.543,106.9]
[1645852926365,20.75270334,92.679,92.544,2.56805584]
[1645852926564,20.75270334,92.679,92.544,15.75852338]
[1645852926769,20.75270334,92.679,92.545,131.88084861]
[1645852926968,20.75270334,92.679,92.56,15.51]
[1645852927170,20.75270334,92.679,92.561,73.26803502]
[1645852927369,20.75270334,92.679,92.562,2.99779739]
[1645852927771,20.75270334,92.679,92.564,2.95959846]
[1645852928172,66.798893,92.678,92.564,2.95959846]
[1645852928470,64.21,92.676,92.564,2.95959846]
[1645852928875,76.22759115,92.676,92.564,2.95959846]
[1645852929072,76.22759115,92.676,92.565,4.318]
[1645852930675,16.2015,92.67,92.565,4.318]
[1645852930876,16.2015,92.67,92.564,2.95959846]
[1645852931284,23.4902,92.669,92.564,2.95959846]
[1645852932075,64.21,92.668,92.564,2.95959846]
[1645852932280,1.85090272,92.667,92.564,2.95959846]
[1645852932477,4.43979572,92.667,92.564,2.95959846]
[1645852932775,2.588893,92.666,92.564,2.95959846]
[1645852937785,64.21,92.659,92.564,2.95959846]
[1645852938184,66.798893,92.659,92.564,2.95959846]
[1645852938885,64.21,92.657,92.564,2.95959846]
[1645852939589,4.30697214,92.656,92.563,24.4063]
[1645852939787,64.21,92.649,92.563,24.4063]
[1645852940189,66.798893,92.649,92.563,24.4063]
[1645852945496,1.80055239,92.648,92.563,24.4063]
[1645852945696,64.21,92.639,92.563,24.4063]
[1645852946397,4.06464131,92.638,92.563,24.4063]
[1645852946596,4.06464131,92.638,92.531,2.29735876]
[1645852946797,1.3986099,92.635,92.533,3.03544736]
[1645852947201,64.21,92.629,92.534,47.26179748]
[1645852947398,64.21,92.629,92.535,2.88074966]
[1645852952802,64.21,92.619,92.535,2.88074966]
[1645852953020,64.21,92.617,92.535,2.88074966]
[1645852953321,23.2126,92.618,92.535,2.88074966]
[1645852953819,23.2126,92.618,92.536,3.12453699]
[1645852954220,23.2126,92.618,92.537,59.10543693]
[1645852954421,23.2126,92.618,92.538,2.91785766]
[1645852956023,16.2068,92.64,92.539,133.61418194]
[1645852956223,2.58902648,92.654,92.541,106.9]
[1645852956423,16.2037,92.66,92.543,106.9]
[1645852956623,11.26036542,92.706,92.545,106.9]
[1645852956834,11.26036542,92.706,92.561,106.9]
[1645852957025,22.89616832,92.708,92.561,106.9]
[1645852957026,22.89616832,92.708,92.571,106.9]
[1645852957225,16.3629695,92.705,92.58,193.89]
[1645852957425,16.3629695,92.705,92.59,15.51]
[1645852957626,16.3629695,92.725,92.591,111.467]
[1645852957824,16.3629695,92.725,92.593,106.9]
[1645852958023,16.3629695,92.725,92.595,106.9]
[1645852958225,16.3629695,92.725,92.597,106.9]
[1645852958426,16.3629695,92.725,92.611,106.9]
[1645852958728,16.3629695,92.725,92.613,2.52723892]
[1645852959126,16.3629695,92.725,92.614,2.86292427]
[1645852959525,64.21,92.719,92.62,16.1912]
[1645852959726,64.21,92.719,92.614,2.86292427]
[1645852959727,1.46679065,92.718,92.614,2.86292427]
[1645852960130,64.21,92.716,92.614,2.86292427]
[1645852960535,64.21,92.714,92.614,2.86292427]
[1645852961436,16.1946,92.71,92.616,2.82909015]
[1645852963838,64.21,92.709,92.616,2.82909015]
[1645852964040,64.21,92.699,92.601,2.46679554]
[1645852964341,64.21,92.689,92.593,2.98900962]
[1645852964538,64.21,92.687,92.593,2.98900962]
[1645852964739,64.21,92.687,92.593,59.82712556]
[1645852964938,64.21,92.687,92.594,2.48063408]
[1645852965339,16.1994,92.68,92.594,2.48063408]
[1645852965940,64.21,92.679,92.589,4.316]
[1645852966140,1.60465512,92.678,92.589,4.316]
[1645852967642,16.2016,92.67,92.589,4.316]
[1645852974447,65.85045952,92.669,92.589,4.316]
[1645852974647,16.2052,92.65,92.589,4.316]
[1645852984761,16.2052,92.65,92.571,24.2301196]
[1645852986774,16.2052,92.65,92.572,56.50122068]
[1645852992991,16.2052,92.65,92.573,2.56705335]
[1645852995694,24.2857,92.658,92.573,2.56705335]
[1645852995898,16.2019,92.67,92.574,2.86292427]
[1645852996196,16.2019,92.67,92.576,2.37882052]
[1645852996601,16.2019,92.67,92.577,2.86292427]
[1645852998899,22.9369,92.689,92.577,2.86292427]
[1645853001304,31.7082,92.69,92.577,2.86292427]
[1645853001502,209.6961,92.74,92.577,2.86292427]
[1645853001503,4.317,92.695,92.591,106.9]
[1645853001701,16.3286,92.708,92.594,2.31333688]
[1645853001901,16.1948,92.71,92.594,2.31333688]
[1645853002102,16.37391663,92.707,92.595,109.76292427]
[1645853002303,16.37391663,92.707,92.595,125.2583251]
[1645853002501,16.37391663,92.709,92.597,106.9]
[1645853002703,16.37391663,92.709,92.598,2.46738832]
[1645853002904,16.1967,92.7,92.6,16.1939]
[1645853003102,64.21,92.699,92.598,2.86292427]
[1645853003302,4.317,92.698,92.593,2.5167113]
[1645853003503,106.9,92.694,92.592,24.5773]
[1645853003706,64.21,92.689,92.565,2.97943402]
[1645853003906,64.21,92.679,92.575,2.79714425]
[1645853004104,16.2048,92.65,92.575,2.79714425]
[1645853004905,16.2048,92.65,92.575,24.7841]
[1645853005104,16.2048,92.65,92.576,2.4304037]
[1645853005907,16.2019,92.67,92.577,2.86292427]
[1645853008106,4.317,92.685,92.578,106.9]
[1645853008308,16.1983,92.69,92.579,2.63192101]
[1645853008505,16.1983,92.69,92.581,106.9]
[1645853008707,23.7497,92.689,92.582,2.46710214]
[1645853009106,23.7497,92.689,92.582,137.90420835]
[1645853009307,23.7497,92.689,92.583,28.53710621]
[1645853009506,23.7497,92.689,92.584,2.47817676]
[1645853009708,23.7497,92.689,92.584,28.53710621]
[1645853009908,23.7497,92.689,92.585,30.91420793]
[1645853010410,23.7497,92.689,92.587,2.54632189]
[1645853010608,23.7497,92.689,92.589,2.66760578]
[1645853011108,23.7497,92.689,92.59,2.86292427]
[1645853015516,64.21,92.688,92.59,2.86292427]
[1645853015717,64.21,92.688,92.588,24.4598]
[1645853015718,64.21,92.679,92.588,24.4598]
[1645853016017,1.84743346,92.676,92.588,24.4598]
[1645853016216,64.21,92.675,92.588,24.4598]
[1645853016419,80.58799129,92.675,92.588,24.4598]
[1645853016818,64.21,92.673,92.588,24.4598]
[1645853017218,64.21,92.671,92.588,24.4598]
[1645853017619,16.2038,92.66,92.588,24.4598]
[1645853018821,80.4138,92.66,92.588,24.4598]
[1645853019020,1.84003038,92.659,92.588,24.4598]
[1645853019223,80.4157,92.65,92.588,24.4598]
[1645853021938,16.2057,92.65,92.588,24.4598]
[1645853022141,16.2017,92.68,92.589,5.49235636]
[1645853022440,16.2017,92.68,92.59,5.29865342]
[1645853022639,16.2017,92.68,92.59,20.54142748]
[1645853022843,16.2017,92.68,92.592,55.91679532]
[1645853023240,16.2017,92.68,92.593,18.10569833]
[1645853023440,16.2017,92.68,92.594,2.8254642]
[1645853023640,1.8222278,92.676,92.594,2.86292427]
[1645853023840,16.2017,92.67,92.594,2.86292427]
[1645853024041,65.8466901,92.669,92.574,24.0401]
[1645853024242,64.21,92.668,92.574,24.0401]
[1645853024447,2.58917482,92.669,92.574,24.0401]
[1645853024641,1.74975955,92.675,92.575,57.71193977]
[1645853024841,6.06675955,92.675,92.574,24.0401]
[1645853025041,15.51,92.67,92.574,24.0401]
[1645853025243,64.21,92.669,92.574,24.0401]
[1645853025442,16.2046,92.65,92.574,24.0401]
[1645853026142,80.4146,92.65,92.574,24.0401]
[1645853026341,88.7246,92.65,92.574,24.0401]
[1645853028545,16.2081,92.63,92.574,24.0401]
[1645853028746,22.3581,92.63,92.574,24.0401]
[1645853032354,16.2081,92.63,92.574,24.0401]
[1645853038460,16.2081,92.63,92.574,24.01408542]
[1645853040362,24.2766,92.648,92.574,24.01408542]
[1645853040761,16.2052,92.65,92.575,2.90379358]
[1645853040966,4.319,92.676,92.575,2.90379358]
[1645853041164,4.317,92.695,92.577,106.9]
[1645853041365,4.317,92.7,92.578,3.09681326]
[1645853041564,4.317,92.707,92.581,106.9]
[1645853041765,64.21,92.706,92.582,2.61776284]
[1645853041964,4.317,92.705,92.583,106.9]
[1645853042166,4.317,92.705,92.584,2.6770753]
[1645853042665,16.1981,92.69,92.584,5.53999957]
[1645853042865,16.1981,92.69,92.585,2.86292427]
[1645853043467,22.9406,92.689,92.585,2.86292427]
[1645853044266,16.41375944,92.688,92.585,2.86292427]
[1645853046466,16.1999,92.68,92.584,2.6770753]
[1645853046868,16.41375944,92.679,92.584,2.6770753]
[1645853047269,23.504,92.678,92.584,2.6770753]
[1645853049672,16.1999,92.68,92.584,2.6770753]
[1645853049871,16.41457752,92.677,92.585,2.86292427]
[1645853050272,16.1999,92.68,92.585,2.86292427]
[1645853051076,41.38798943,92.679,92.584,2.6770753]
[1645853051477,16.41528943,92.678,92.584,2.6770753]
[1645853051679,105.0,92.669,92.568,2.86292427]
[1645853051883,64.21,92.666,92.556,2.86292427]
[1645853052081,64.21,92.657,92.491,1.3139196]
[1645853052282,64.21,92.651,92.491,108.2139196]
[1645853052480,64.21,92.639,92.491,108.2139196]
[1645853052682,15.51,92.63,92.493,106.9]
[1645853052877,64.21,92.619,92.493,106.9]
[1645853053076,2.02762915,92.616,92.493,106.9]
[1645853053278,80.4258,92.6,92.493,106.9]
[1645853053478,1.59168105,92.598,92.493,106.9]
[1645853054078,98.35665595,92.599,92.493,106.9]
[1645853054079,1.69785896,92.596,92.493,106.9]
[1645853054504,16.2166,92.58,92.491,1.3139196]
[1645853054703,1.47500092,92.579,92.491,1.3139196]
[1645853056598,22.7966,92.58,92.491,1.3139196]
[1645853056599,16.2194,92.57,92.491,1.3139196]
[1645853056798,1.49884542,92.569,92.491,1.3139196]
[1645853058203,66.06054217,92.559,92.491,1.3139196]
[1645853058402,1.61181771,92.558,92.491,1.3139196]
[1645853058801,4.323,92.557,92.491,1.3139196]
[1645853059605,1.64988019,92.539,92.491,1.3139196]
[1645853059805,8.81988019,92.539,92.491,1.3139196]
[1645853060407,8.81988019,92.539,92.372,64.21]
[1645853060408,108.50628736,92.537,92.419,4.323]
[1645853060605,64.21,92.538,92.364,15.8422]
[1645853060606,1.76057232,92.508,92.403,46.8065]
[1645853060805,64.21,92.499,92.381,24.5155]
[1645853061004,4.325,92.498,92.381,24.5155]
[1645853061206,1.63258254,92.496,92.381,24.5155]
[1645853061405,4.325,92.495,92.382,42.70014803]
[1645853061606,16.2383,92.46,92.382,42.70014803]
[1645853061807,1.76262533,92.479,92.382,42.70014803]
[1645853062006,15.51,92.47,92.383,24.5946]
[1645853062208,15.51,92.48,92.383,24.5946]
[1645853062409,1.90588625,92.479,92.383,24.5946]
[1645853062610,16.2384,92.46,92.384,113.0]
[1645853062811,1.83156163,92.459,92.384,113.0]